[Event "*** SCC Grand Prix: Titled Tuesday Blitz"]
[Site "Chess.com"]
[Date "2020.10.06"]
[Round "10"]
[White "AniJak"]
[Black "aisha_zakirova"]
[Result "0-1"]
[WhiteElo "2338"]
[BlackElo "2178"]
[TimeControl "180+1"]
[EndTime "11:57:46 PDT"]
[Termination "aisha_zakirova won by resignation"]

1. e4 {[%clk 0:03:00.9]} 1... c5 {[%clk 0:02:59]} 2. Nf3 {[%clk 0:03:00.9]} 2...
d6 {[%clk 0:02:57.8]} 3. d4 {[%clk 0:03:01.3]} 3... cxd4 {[%clk 0:02:57.8]} 4.
Nxd4 {[%clk 0:03:02.2]} 4... Nf6 {[%clk 0:02:57.3]} 5. Nc3 {[%clk 0:03:02.6]}
5... Nc6 {[%clk 0:02:57.1]} 6. Bg5 {[%clk 0:02:58.4]} 6... e6 {[%clk 0:02:53.9]}
7. Qd2 {[%clk 0:02:57.8]} 7... h6 {[%clk 0:02:49.8]} 8. Be3 {[%clk 0:02:55]}
8... Ng4 {[%clk 0:02:47.1]} 9. Nxc6 {[%clk 0:02:52.9]} 9... bxc6 {[%clk
0:02:45.6]} 10. Bf4 {[%clk 0:02:43.2]} 10... d5 {[%clk 0:02:15]} 11. exd5 {[%clk
0:02:41.2]} 11... cxd5 {[%clk 0:02:13.1]} 12. Nb5 {[%clk 0:02:37.4]} 12... Bc5
{[%clk 0:01:55.1]} 13. Nc7+ {[%clk 0:02:30.8]} 13... Kf8 {[%clk 0:01:53.7]} 14.
Nxa8 {[%clk 0:02:26.7]} 14... Bxf2+ {[%clk 0:01:51.8]} 15. Kd1 {[%clk
0:02:22.8]} 15... e5 {[%clk 0:01:35.9]} 16. Bxe5 {[%clk 0:02:18.5]} 16... Be3
{[%clk 0:01:20.8]} 17. Qb4+ {[%clk 0:02:15.2]} 17... Kg8 {[%clk 0:01:18.1]} 18.
Qd6 {[%clk 0:01:27.8]} 18... Qg5 {[%clk 0:00:55.3]} 19. Bd3 {[%clk 0:01:17.6]}
19... Nf2+ {[%clk 0:00:52.7]} 20. Ke1 {[%clk 0:01:17.2]} 20... Nxd3+ {[%clk
0:00:33.6]} 21. cxd3 {[%clk 0:01:18.1]} 21... Bd2+ {[%clk 0:00:31.8]} 22. Kf1
{[%clk 0:01:12.9]} 22... Qe3 {[%clk 0:00:19.3]} 23. Qxd5 {[%clk 0:00:56.1]}
23... Ba6 {[%clk 0:00:18.2]} 24. g3 {[%clk 0:00:33.4]} 24... Bxd3+ {[%clk
0:00:16.8]} 25. Kg2 {[%clk 0:00:34]} 25... Be4+ {[%clk 0:00:16.7]} 26. Qxe4
{[%clk 0:00:34.4]} 26... Qxe4+ {[%clk 0:00:16.2]} 27. Kh3 {[%clk 0:00:35.3]}
27... Qxe5 {[%clk 0:00:15]} 28. Rhf1 {[%clk 0:00:34.8]} 28... Qe6+ {[%clk
0:00:13.9]} 29. Kg2 {[%clk 0:00:34.8]} 29... Qc6+ {[%clk 0:00:13.7]} 30. Kg1
{[%clk 0:00:33.9]} 30... Qxa8 {[%clk 0:00:13.9]} 31. Rad1 {[%clk 0:00:33.6]}
31... Be3+ {[%clk 0:00:13.6]} 32. Rf2 {[%clk 0:00:33.9]} 32... Bxf2+ {[%clk
0:00:13.9]} 33. Kxf2 {[%clk 0:00:33.5]} 33... Kh7 {[%clk 0:00:14.8]} 34. Rd2
{[%clk 0:00:33.8]} 34... Rd8 {[%clk 0:00:12.9]} 35. Re2 {[%clk 0:00:34.7]} 35...
Re8 {[%clk 0:00:10.4]} 36. Rd2 {[%clk 0:00:34.8]} 36... Qe4 {[%clk 0:00:10.8]}
37. Rd7 {[%clk 0:00:29.8]} 37... Qe3+ {[%clk 0:00:10.4]} 0-1

[Event "*** SCC Grand Prix: Titled Tuesday Blitz"]
[Site "Chess.com"]
[Date "2020.10.06"]
[Round "10"]
[White "fabianvivasz"]
[Black "gumimis"]
[Result "1-0"]
[WhiteElo "2345"]
[BlackElo "2248"]
[TimeControl "180+1"]
[EndTime "11:57:49 PDT"]
[Termination "fabianvivasz won by checkmate"]

1. e4 {[%clk 0:03:00.3]} 1... c5 {[%clk 0:02:59.7]} 2. Nf3 {[%clk 0:02:59.9]}
2... d6 {[%clk 0:02:59.9]} 3. d4 {[%clk 0:02:59.1]} 3... cxd4 {[%clk 0:03:00.4]}
4. Nxd4 {[%clk 0:03:00]} 4... Nf6 {[%clk 0:03:00.9]} 5. Nc3 {[%clk 0:03:00.4]}
5... a6 {[%clk 0:03:00.9]} 6. f3 {[%clk 0:02:59.2]} 6... e5 {[%clk 0:03:00.9]}
7. Nb3 {[%clk 0:02:58.9]} 7... Be6 {[%clk 0:03:01]} 8. Be3 {[%clk 0:02:59]} 8...
Be7 {[%clk 0:03:01.3]} 9. Qd2 {[%clk 0:02:58.5]} 9... O-O {[%clk 0:03:00.9]} 10.
O-O-O {[%clk 0:02:54]} 10... a5 {[%clk 0:03:00.4]} 11. a4 {[%clk 0:02:45.8]}
11... Nc6 {[%clk 0:02:58]} 12. g4 {[%clk 0:02:23.8]} 12... Nb4 {[%clk
0:02:56.4]} 13. g5 {[%clk 0:02:11.1]} 13... Nd7 {[%clk 0:02:52.3]} 14. h4 {[%clk
0:01:59.3]} 14... f5 {[%clk 0:02:43.4]} 15. Bh3 {[%clk 0:01:39.2]} 15... Rc8
{[%clk 0:02:19.3]} 16. Kb1 {[%clk 0:01:31.8]} 16... Nb6 {[%clk 0:02:01.5]} 17.
Bxb6 {[%clk 0:01:14.6]} 17... Qxb6 {[%clk 0:02:01.3]} 18. exf5 {[%clk
0:01:05.9]} 18... Bxf5 {[%clk 0:01:59.4]} 19. Bxf5 {[%clk 0:01:06]} 19... Rxf5
{[%clk 0:02:00.2]} 20. Nd5 {[%clk 0:01:06.2]} 20... Nxd5 {[%clk 0:01:52.8]} 21.
Qxd5+ {[%clk 0:01:07.1]} 21... Kh8 {[%clk 0:01:52.7]} 22. Rd3 {[%clk 0:00:53.8]}
22... Rf4 {[%clk 0:01:34.7]} 23. Qxa5 {[%clk 0:00:43.3]} 23... Qf2 {[%clk
0:01:19.3]} 24. Nd2 {[%clk 0:00:30.5]} 24... Bd8 {[%clk 0:01:00.8]} 25. Qd5
{[%clk 0:00:27.4]} 25... Rxa4 {[%clk 0:00:58.3]} 26. Qxb7 {[%clk 0:00:23.7]}
26... Rca8 {[%clk 0:00:54.8]} 27. Nb3 {[%clk 0:00:22.3]} 27... g6 {[%clk
0:00:28.3]} 28. Rxd6 {[%clk 0:00:20.6]} 28... Qe3 {[%clk 0:00:13.8]} 29. Rhd1
{[%clk 0:00:17.6]} 29... Be7 {[%clk 0:00:13.2]} 30. Qxe7 {[%clk 0:00:16.3]}
30... Qxb3 {[%clk 0:00:10.4]} 31. Qf6+ {[%clk 0:00:15.8]} 31... Kg8 {[%clk
0:00:10.2]} 32. Rd8+ {[%clk 0:00:15.9]} 32... Rxd8 {[%clk 0:00:10.4]} 33. Rxd8#
{[%clk 0:00:16.8]} 1-0

[Event "*** SCC Grand Prix: Titled Tuesday Blitz"]
[Site "Chess.com"]
[Date "2020.10.06"]
[Round "10"]
[White "CrazyMartian"]
[Black "juli2512"]
[Result "1-0"]
[WhiteElo "2282"]
[BlackElo "2062"]
[TimeControl "180+1"]
[EndTime "11:57:51 PDT"]
[Termination "CrazyMartian won on time"]

1. d4 {[%clk 0:03:00.9]} 1... f5 {[%clk 0:02:59]} 2. Nc3 {[%clk 0:02:45.7]} 2...
d5 {[%clk 0:02:53.8]} 3. Bg5 {[%clk 0:02:44.7]} 3... c6 {[%clk 0:02:48.4]} 4. e3
{[%clk 0:02:43.6]} 4... Be6 {[%clk 0:02:46]} 5. Bd3 {[%clk 0:02:40.8]} 5... Nd7
{[%clk 0:02:40.8]} 6. Qf3 {[%clk 0:02:34.1]} 6... g6 {[%clk 0:02:39.7]} 7. h4
{[%clk 0:02:33.5]} 7... Ngf6 {[%clk 0:02:37.5]} 8. h5 {[%clk 0:02:30.3]} 8...
Nxh5 {[%clk 0:02:20.2]} 9. Rxh5 {[%clk 0:02:27.1]} 9... gxh5 {[%clk 0:02:20.2]}
10. Qxh5+ {[%clk 0:02:13.1]} 10... Bf7 {[%clk 0:02:19.7]} 11. Qh3 {[%clk
0:02:13.1]} 11... Qb6 {[%clk 0:02:00.3]} 12. Bxf5 {[%clk 0:02:12.1]} 12... O-O-O
{[%clk 0:01:58.5]} 13. O-O-O {[%clk 0:02:08.1]} 13... h6 {[%clk 0:01:27.8]} 14.
Bf4 {[%clk 0:02:04.1]} 14... Bg7 {[%clk 0:01:25.7]} 15. Nf3 {[%clk 0:02:03.2]}
15... e6 {[%clk 0:01:19.9]} 16. Bxe6 {[%clk 0:01:59.2]} 16... Bxe6 {[%clk
0:01:18.8]} 17. Qxe6 {[%clk 0:02:00.1]} 17... Rhe8 {[%clk 0:01:17.9]} 18. Qg6
{[%clk 0:01:57.1]} 18... Bf8 {[%clk 0:01:09]} 19. Ne5 {[%clk 0:01:48]} 19...
Nxe5 {[%clk 0:01:06.4]} 20. Bxe5 {[%clk 0:01:47.5]} 20... Bb4 {[%clk 0:00:59.5]}
21. Rd3 {[%clk 0:01:25.9]} 21... Qa6 {[%clk 0:00:55.9]} 22. a3 {[%clk
0:01:16.9]} 22... Bxc3 {[%clk 0:00:54]} 23. Qg4+ {[%clk 0:01:07]} 23... Rd7
{[%clk 0:00:51.3]} 24. Rxc3 {[%clk 0:01:05.7]} 24... Qf1+ {[%clk 0:00:49.8]} 25.
Qd1 {[%clk 0:01:05.7]} 25... Qxf2 {[%clk 0:00:48.7]} 26. g3 {[%clk 0:01:02.1]}
26... Rf8 {[%clk 0:00:45.4]} 27. b4 {[%clk 0:00:56.6]} 27... Rdf7 {[%clk
0:00:40.4]} 28. Kb2 {[%clk 0:00:52.7]} 28... Qf1 {[%clk 0:00:40]} 29. Qg4+
{[%clk 0:00:49.5]} 29... Rd7 {[%clk 0:00:36.6]} 30. Bf4 {[%clk 0:00:40.2]} 30...
Qb5 {[%clk 0:00:24.6]} 31. Qe6 {[%clk 0:00:35.2]} 31... a5 {[%clk 0:00:19.6]}
32. Qe5 {[%clk 0:00:27.2]} 32... Kd8 {[%clk 0:00:13.8]} 33. Rc5 {[%clk
0:00:24.2]} 33... Qe2 {[%clk 0:00:07.3]} 34. Rxa5 {[%clk 0:00:21.6]} 1-0

[Event "*** SCC Grand Prix: Titled Tuesday Blitz"]
[Site "Chess.com"]
[Date "2020.10.06"]
[Round "10"]
[White "PhileKhoob"]
[Black "Carnivoras"]
[Result "0-1"]
[WhiteElo "2475"]
[BlackElo "2668"]
[TimeControl "180+1"]
[EndTime "11:57:53 PDT"]
[Termination "Carnivoras won by resignation"]

1. Nf3 {[%clk 0:03:00.9]} 1... d5 {[%clk 0:02:55.2]} 2. b3 {[%clk 0:03:01.1]}
2... Nf6 {[%clk 0:02:54.7]} 3. Bb2 {[%clk 0:03:01.6]} 3... Bf5 {[%clk
0:02:55.4]} 4. g3 {[%clk 0:03:00.9]} 4... Nbd7 {[%clk 0:02:55.9]} 5. Bg2 {[%clk
0:03:01.2]} 5... e6 {[%clk 0:02:56.5]} 6. O-O {[%clk 0:03:01.7]} 6... Be7 {[%clk
0:02:57]} 7. d3 {[%clk 0:03:02.3]} 7... h6 {[%clk 0:02:57.6]} 8. Nbd2 {[%clk
0:03:03.2]} 8... O-O {[%clk 0:02:58.1]} 9. Re1 {[%clk 0:03:03.9]} 9... c6 {[%clk
0:02:58.6]} 10. e4 {[%clk 0:03:04.5]} 10... Bh7 {[%clk 0:02:59.2]} 11. Qe2
{[%clk 0:03:05]} 11... a5 {[%clk 0:02:58.2]} 12. a3 {[%clk 0:03:05.4]} 12... Qc7
{[%clk 0:02:57.2]} 13. e5 {[%clk 0:03:05.3]} 13... Ne8 {[%clk 0:02:55.1]} 14. h4
{[%clk 0:03:05.9]} 14... b5 {[%clk 0:02:39.7]} 15. Nh2 {[%clk 0:03:05.6]} 15...
Qb6 {[%clk 0:02:29.5]} 16. a4 {[%clk 0:02:57.6]} 16... Nc7 {[%clk 0:02:19.6]}
17. Ng4 {[%clk 0:02:51.9]} 17... bxa4 {[%clk 0:01:56]} 18. Rxa4 {[%clk
0:02:51.3]} 18... Nc5 {[%clk 0:01:55.7]} 19. Ra2 {[%clk 0:02:23.9]} 19... a4
{[%clk 0:01:54.9]} 20. Bd4 {[%clk 0:02:23.7]} 20... Nb5 {[%clk 0:01:50.4]} 21.
Qe3 {[%clk 0:02:05.5]} 21... Bf5 {[%clk 0:01:32.3]} 22. bxa4 {[%clk 0:01:16]}
22... Bxg4 {[%clk 0:01:24]} 23. Rb1 {[%clk 0:01:15.3]} 23... Qa5 {[%clk
0:01:05.7]} 24. Bxc5 {[%clk 0:00:48.3]} 24... Bxc5 {[%clk 0:00:57.7]} 25. Qxc5
{[%clk 0:00:42.9]} 25... Qxd2 {[%clk 0:00:52.4]} 26. Rab2 {[%clk 0:00:42.1]}
26... Nc3 {[%clk 0:00:50]} 27. Rf1 {[%clk 0:00:42.5]} 27... Be2 {[%clk
0:00:47.7]} 28. Ra1 {[%clk 0:00:40.6]} 28... Nd1 {[%clk 0:00:47.9]} 29. Rbb1
{[%clk 0:00:38.5]} 29... Qe1+ {[%clk 0:00:47.3]} 30. Kh2 {[%clk 0:00:37.9]}
30... Qxf2 {[%clk 0:00:47]} 31. Qxf2 {[%clk 0:00:33.7]} 31... Nxf2 {[%clk
0:00:47.9]} 32. a5 {[%clk 0:00:33.1]} 32... Ng4+ {[%clk 0:00:47.5]} 33. Kg1
{[%clk 0:00:32.7]} 33... Ne3 {[%clk 0:00:46.2]} 34. Kf2 {[%clk 0:00:31.8]} 34...
Nxc2 {[%clk 0:00:42.4]} 35. Kxe2 {[%clk 0:00:18.8]} 35... Nxa1 {[%clk
0:00:27.9]} 36. Rxa1 {[%clk 0:00:19.7]} 36... Rfb8 {[%clk 0:00:28.1]} 37. d4
{[%clk 0:00:18.7]} 37... Rb5 {[%clk 0:00:28.2]} 38. Rc1 {[%clk 0:00:19.1]} 38...
Ra6 {[%clk 0:00:28.2]} 39. Ke3 {[%clk 0:00:18.8]} 39... Rbxa5 {[%clk 0:00:28.3]}
40. Bf1 {[%clk 0:00:19.7]} 40... Ra3+ {[%clk 0:00:28.5]} 41. Bd3 {[%clk
0:00:20.2]} 41... Rb6 {[%clk 0:00:28.2]} 42. Ke2 {[%clk 0:00:20]} 42... Rb2+
{[%clk 0:00:28.1]} 43. Rc2 {[%clk 0:00:20.2]} 43... Rxc2+ {[%clk 0:00:27.3]} 44.
Bxc2 {[%clk 0:00:21.1]} 44... Rxg3 {[%clk 0:00:27.6]} 0-1

[Event "*** SCC Grand Prix: Titled Tuesday Blitz"]
[Site "Chess.com"]
[Date "2020.10.06"]
[Round "10"]
[White "Aygehovit1992"]
[Black "StellarChessPro"]
[Result "1-0"]
[WhiteElo "2621"]
[BlackElo "2465"]
[TimeControl "180+1"]
[EndTime "11:57:55 PDT"]
[Termination "Aygehovit1992 won by resignation"]

1. Nf3 {[%clk 0:03:00.9]} 1... b6 {[%clk 0:02:59.1]} 2. b3 {[%clk 0:02:59.8]}
2... Bb7 {[%clk 0:03:00]} 3. Bb2 {[%clk 0:03:00.7]} 3... e6 {[%clk 0:02:59.6]}
4. c4 {[%clk 0:03:00]} 4... Nf6 {[%clk 0:03:00.5]} 5. Nc3 {[%clk 0:02:59.3]}
5... c5 {[%clk 0:03:01.4]} 6. Qc2 {[%clk 0:02:58.8]} 6... Nc6 {[%clk 0:03:01.7]}
7. e3 {[%clk 0:02:59.2]} 7... Be7 {[%clk 0:03:01.6]} 8. a3 {[%clk 0:02:58.8]}
8... Rc8 {[%clk 0:03:01.5]} 9. Rg1 {[%clk 0:02:58.1]} 9... d5 {[%clk 0:03:01.8]}
10. g4 {[%clk 0:02:57.1]} 10... d4 {[%clk 0:03:02.1]} 11. exd4 {[%clk
0:02:53.5]} 11... Nxd4 {[%clk 0:03:01.7]} 12. Nxd4 {[%clk 0:02:51.5]} 12... cxd4
{[%clk 0:03:02.6]} 13. Nb5 {[%clk 0:02:40.3]} 13... e5 {[%clk 0:03:01.1]} 14. g5
{[%clk 0:02:35.1]} 14... Ne4 {[%clk 0:02:56.3]} 15. Bg2 {[%clk 0:02:25.1]} 15...
d3 {[%clk 0:02:50.8]} 16. Qd1 {[%clk 0:02:24.8]} 16... Bc5 {[%clk 0:02:39.5]}
17. Bxe4 {[%clk 0:02:20.5]} 17... Bxe4 {[%clk 0:02:39]} 18. Qg4 {[%clk
0:02:17.1]} 18... Bb7 {[%clk 0:02:04.9]} 19. Nxa7 {[%clk 0:02:08.5]} 19... O-O
{[%clk 0:02:04.5]} 20. Nxc8 {[%clk 0:02:07.8]} 20... Bxc8 {[%clk 0:02:05.4]} 21.
Qg3 {[%clk 0:02:05.8]} 21... Bd4 {[%clk 0:02:02.5]} 22. O-O-O {[%clk 0:01:55.3]}
22... Bxb2+ {[%clk 0:01:59]} 23. Kxb2 {[%clk 0:01:56.2]} 23... Qd4+ {[%clk
0:01:58.9]} 24. Ka2 {[%clk 0:01:56.6]} 24... Be6 {[%clk 0:01:48.2]} 25. Qe3
{[%clk 0:01:55.7]} 25... Qd6 {[%clk 0:01:48.1]} 26. Kb2 {[%clk 0:01:47.2]} 26...
Ra8 {[%clk 0:01:45.3]} 27. Ra1 {[%clk 0:01:47.4]} 27... b5 {[%clk 0:01:41.1]}
28. Rge1 {[%clk 0:01:43.4]} 28... bxc4 {[%clk 0:01:39.5]} 29. Qxe5 {[%clk
0:01:43.1]} 29... Qb6 {[%clk 0:01:37.5]} 30. b4 {[%clk 0:01:39.9]} 30... Qxf2
{[%clk 0:01:34.1]} 31. Qc3 {[%clk 0:01:40]} 31... Qxh2 {[%clk 0:01:24.6]} 32. a4
{[%clk 0:01:39.9]} 32... Rb8 {[%clk 0:01:22.3]} 33. b5 {[%clk 0:01:38.5]} 33...
Qd6 {[%clk 0:01:19.6]} 34. Re4 {[%clk 0:01:33.3]} 34... Qc5 {[%clk 0:01:18.8]}
35. Re5 {[%clk 0:01:29.7]} 35... Qf2 {[%clk 0:01:14.4]} 36. a5 {[%clk
0:01:27.2]} 36... h6 {[%clk 0:01:08.8]} 37. a6 {[%clk 0:01:23.7]} 37... hxg5
{[%clk 0:01:03.1]} 38. a7 {[%clk 0:01:23.7]} 38... Ra8 {[%clk 0:01:02.4]} 39.
Rxe6 {[%clk 0:00:44.9]} 39... fxe6 {[%clk 0:01:02]} 40. Qxc4 {[%clk 0:00:45.4]}
40... Qxd2+ {[%clk 0:00:59.1]} 41. Kb3 {[%clk 0:00:45]} 41... Qe3 {[%clk
0:00:54.2]} 42. Qc6 {[%clk 0:00:20.7]} 42... d2+ {[%clk 0:00:48.1]} 43. Kc2
{[%clk 0:00:20.7]} 43... Rxa7 {[%clk 0:00:33.7]} 44. Qe8+ {[%clk 0:00:19.7]}
44... Kh7 {[%clk 0:00:28.1]} 45. Rh1+ {[%clk 0:00:20.6]} 1-0

[Event "*** SCC Grand Prix: Titled Tuesday Blitz"]
[Site "Chess.com"]
[Date "2020.10.06"]
[Round "10"]
[White "VladimirBugayev"]
[Black "zurzan"]
[Result "0-1"]
[WhiteElo "2269"]
[BlackElo "1955"]
[TimeControl "180+1"]
[EndTime "11:57:56 PDT"]
[Termination "zurzan won by resignation"]

1. e4 {[%clk 0:03:00.9]} 1... Nf6 {[%clk 0:02:58.8]} 2. Nc3 {[%clk 0:02:58.5]}
2... d5 {[%clk 0:02:58.5]} 3. exd5 {[%clk 0:02:57.9]} 3... Nxd5 {[%clk
0:02:58.3]} 4. d4 {[%clk 0:02:48]} 4... Nc6 {[%clk 0:02:57.2]} 5. Bc4 {[%clk
0:02:47.4]} 5... Nb6 {[%clk 0:02:55.6]} 6. Bb3 {[%clk 0:02:34.1]} 6... Qxd4
{[%clk 0:02:52.6]} 7. Qf3 {[%clk 0:02:33.8]} 7... Qf6 {[%clk 0:02:42.7]} 8. Qxf6
{[%clk 0:02:10.8]} 8... exf6 {[%clk 0:02:42]} 9. Nf3 {[%clk 0:02:09.9]} 9... Bb4
{[%clk 0:02:40.2]} 10. O-O {[%clk 0:02:09.4]} 10... O-O {[%clk 0:02:40]} 11. Bf4
{[%clk 0:02:02.9]} 11... Bd6 {[%clk 0:02:19.8]} 12. Bxd6 {[%clk 0:01:58.7]}
12... cxd6 {[%clk 0:02:20.7]} 13. Rad1 {[%clk 0:01:58.5]} 13... Rd8 {[%clk
0:02:08.8]} 14. Nb5 {[%clk 0:01:57.9]} 14... d5 {[%clk 0:02:06.4]} 15. Nc7
{[%clk 0:01:58.4]} 15... Rb8 {[%clk 0:02:05.9]} 16. Nxd5 {[%clk 0:01:58.7]}
16... Nxd5 {[%clk 0:02:04.4]} 17. Bxd5 {[%clk 0:01:55.6]} 17... Bg4 {[%clk
0:02:02.2]} 18. h3 {[%clk 0:01:37.8]} 18... Bh5 {[%clk 0:02:01.8]} 19. g4 {[%clk
0:01:36.6]} 19... Bg6 {[%clk 0:02:01.3]} 20. Bb3 {[%clk 0:01:33.9]} 20... Na5
{[%clk 0:01:58]} 21. Nh4 {[%clk 0:01:19.1]} 21... Nxb3 {[%clk 0:01:52.5]} 22.
Nxg6 {[%clk 0:01:17.7]} 22... hxg6 {[%clk 0:01:37.9]} 23. cxb3 {[%clk
0:01:16.5]} 23... Rbc8 {[%clk 0:01:34.6]} 24. Rxd8+ {[%clk 0:01:08.8]} 24...
Rxd8 {[%clk 0:01:34.6]} 25. f3 {[%clk 0:01:09.5]} 25... Rd2 {[%clk 0:01:33.7]}
26. Rf2 {[%clk 0:01:09.7]} 26... Rd3 {[%clk 0:01:24.6]} 27. Kg2 {[%clk
0:01:07.5]} 27... f5 {[%clk 0:01:24.4]} 28. g5 {[%clk 0:01:02.6]} 28... f4
{[%clk 0:01:23.8]} 29. Rc2 {[%clk 0:00:58.9]} 29... f6 {[%clk 0:01:10.9]} 30.
gxf6 {[%clk 0:00:53.5]} 30... gxf6 {[%clk 0:01:10.5]} 31. Kf2 {[%clk 0:00:53.7]}
31... Rd7 {[%clk 0:01:07.9]} 32. Rc4 {[%clk 0:00:33.6]} 32... g5 {[%clk
0:01:07.6]} 33. Ke2 {[%clk 0:00:28.8]} 33... Rh7 {[%clk 0:01:05.3]} 34. Rc8+
{[%clk 0:00:28.9]} 34... Kg7 {[%clk 0:01:02.8]} 35. Rc7+ {[%clk 0:00:29.5]}
35... Kg6 {[%clk 0:01:03.1]} 36. Rxh7 {[%clk 0:00:29.9]} 36... Kxh7 {[%clk
0:01:03.5]} 37. a4 {[%clk 0:00:21.6]} 37... Kh6 {[%clk 0:01:00.1]} 38. b4 {[%clk
0:00:19.2]} 38... Kh5 {[%clk 0:00:59.6]} 39. Kf2 {[%clk 0:00:19]} 39... f5
{[%clk 0:00:57.5]} 40. b3 {[%clk 0:00:18.4]} 40... Kg6 {[%clk 0:00:57.3]} 41.
Kg2 {[%clk 0:00:15.6]} 41... Kf6 {[%clk 0:00:56.5]} 42. h4 {[%clk 0:00:16.1]}
42... g4 {[%clk 0:00:54.1]} 43. b5 {[%clk 0:00:13.2]} 43... g3 {[%clk
0:00:52.2]} 44. a5 {[%clk 0:00:11.2]} 44... Kg6 {[%clk 0:00:51.7]} 45. b4 {[%clk
0:00:10.1]} 45... Kh5 {[%clk 0:00:51]} 46. Kh3 {[%clk 0:00:10.2]} 46... b6
{[%clk 0:00:46.8]} 47. axb6 {[%clk 0:00:06.3]} 47... axb6 {[%clk 0:00:47]} 48.
Kg2 {[%clk 0:00:06.2]} 48... Kxh4 {[%clk 0:00:47.3]} 49. Kg1 {[%clk 0:00:06]}
49... Kh3 {[%clk 0:00:47.2]} 50. Kh1 {[%clk 0:00:06.5]} 50... Kh4 {[%clk
0:00:44.6]} 51. Kg2 {[%clk 0:00:06.3]} 51... Kg5 {[%clk 0:00:44.8]} 52. Kh3
{[%clk 0:00:06.3]} 52... Kf6 {[%clk 0:00:45]} 0-1

[Event "*** SCC Grand Prix: Titled Tuesday Blitz"]
[Site "Chess.com"]
[Date "2020.10.06"]
[Round "10"]
[White "shineatchess"]
[Black "Kaslask"]
[Result "0-1"]
[WhiteElo "2171"]
[BlackElo "2318"]
[TimeControl "180+1"]
[EndTime "11:57:57 PDT"]
[Termination "Kaslask won on time"]

1. e4 {[%clk 0:03:00.9]} 1... c5 {[%clk 0:02:58.9]} 2. Nf3 {[%clk 0:03:00.8]}
2... Nc6 {[%clk 0:02:58.6]} 3. Bb5 {[%clk 0:02:59.7]} 3... e6 {[%clk 0:02:57.7]}
4. O-O {[%clk 0:02:57.5]} 4... Nge7 {[%clk 0:02:56.7]} 5. c3 {[%clk 0:02:56.5]}
5... a6 {[%clk 0:02:56.4]} 6. Bxc6 {[%clk 0:02:52]} 6... Nxc6 {[%clk 0:02:50.8]}
7. d4 {[%clk 0:02:52.9]} 7... d5 {[%clk 0:02:48.3]} 8. exd5 {[%clk 0:02:48.2]}
8... Qxd5 {[%clk 0:02:47.2]} 9. Re1 {[%clk 0:02:49.1]} 9... Be7 {[%clk
0:02:43.9]} 10. Ne5 {[%clk 0:02:24]} 10... O-O {[%clk 0:02:31.6]} 11. Nxc6
{[%clk 0:02:12.4]} 11... Qxc6 {[%clk 0:02:29.4]} 12. d5 {[%clk 0:02:10.2]} 12...
Qc7 {[%clk 0:02:18.4]} 13. c4 {[%clk 0:02:05.5]} 13... exd5 {[%clk 0:02:13.4]}
14. cxd5 {[%clk 0:02:03.9]} 14... Bd6 {[%clk 0:02:13]} 15. h3 {[%clk 0:01:53.3]}
15... Bf5 {[%clk 0:02:06.2]} 16. Nc3 {[%clk 0:01:52.8]} 16... Rfe8 {[%clk
0:02:05.6]} 17. Bd2 {[%clk 0:01:45.5]} 17... b5 {[%clk 0:02:03.4]} 18. Qf3
{[%clk 0:01:44.8]} 18... Bg6 {[%clk 0:02:01.1]} 19. Rac1 {[%clk 0:01:29]} 19...
c4 {[%clk 0:01:59.9]} 20. Ne4 {[%clk 0:01:24.3]} 20... Be5 {[%clk 0:01:51.5]}
21. Bc3 {[%clk 0:01:08.8]} 21... Rad8 {[%clk 0:01:46.3]} 22. Rcd1 {[%clk
0:00:49.5]} 22... Bxc3 {[%clk 0:01:32.5]} 23. bxc3 {[%clk 0:00:35.6]} 23... Qe5
{[%clk 0:01:27.6]} 24. Re3 {[%clk 0:00:26]} 24... Bxe4 {[%clk 0:01:24.4]} 25.
Qe2 {[%clk 0:00:24.2]} 25... Rxd5 {[%clk 0:01:17.8]} 26. Rxd5 {[%clk 0:00:18.7]}
26... Qxd5 {[%clk 0:01:15.8]} 27. f3 {[%clk 0:00:18.9]} 27... f5 {[%clk
0:01:13.8]} 28. fxe4 {[%clk 0:00:18.7]} 28... fxe4 {[%clk 0:01:13.1]} 29. Kh2
{[%clk 0:00:17.5]} 29... Qe5+ {[%clk 0:01:11.5]} 30. Kg1 {[%clk 0:00:16.1]}
30... Qf4 {[%clk 0:01:10]} 31. g3 {[%clk 0:00:14.6]} 31... Qf5 {[%clk 0:01:07]}
32. Kg2 {[%clk 0:00:14]} 32... h6 {[%clk 0:01:06.1]} 33. Kh2 {[%clk 0:00:13.2]}
33... Qe5 {[%clk 0:01:02.7]} 34. Kg2 {[%clk 0:00:12.9]} 34... Re6 {[%clk
0:01:02.4]} 35. Qe1 {[%clk 0:00:11.1]} 35... h5 {[%clk 0:00:59.2]} 36. h4 {[%clk
0:00:09.5]} 36... Qd5 {[%clk 0:00:53.9]} 37. Qe2 {[%clk 0:00:09.3]} 37... Qf5
{[%clk 0:00:53.2]} 38. Qe1 {[%clk 0:00:07.9]} 38... Qg4 {[%clk 0:00:52.9]} 39.
Qd2 {[%clk 0:00:06.8]} 39... Kh7 {[%clk 0:00:51.3]} 40. Qe1 {[%clk 0:00:06]}
40... Qf5 {[%clk 0:00:48]} 41. Qe2 {[%clk 0:00:04.6]} 41... Qe5 {[%clk
0:00:46.2]} 42. Kh2 {[%clk 0:00:04.1]} 42... Rg6 {[%clk 0:00:43.4]} 43. Kg2
{[%clk 0:00:03.3]} 43... Kh6 {[%clk 0:00:42.4]} 44. Kh2 {[%clk 0:00:02.4]} 44...
Rd6 {[%clk 0:00:40.7]} 0-1